Cogmind - Beta 10.2 @@@ ROGUE MODE // 2020.11.12 @ 22:45:57 // Halloween2020/ForbiddenLore Player: Ty Piggbottom Result: Self-destructed Performance ------------- Evolutions (2) 1000 Regions Visited (5) 1000 Robots Destroyed (66) 330 Value Destroyed (1197) 1197 Prototype IDs (25) 500 Alien Tech Used (0) 0 Bonus (284) 284 TOTAL SCORE: 4311 Bonus ------- Aligned with FarCom 300 Friendly Fire -16 Cogmind --------- Core Integrity 464/550 Matter 295/300 Energy 265/265 System Corruption 0% Temperature Cool (0) Movement Rolling (120) Ox3 Location -8/Materials Parts ------- > --- POWER (1) -------- Improved Ion Engine > --- PROPULSION (2) --- Armored Wheel > --- UTILITY (5) ------ Improved Heat Sink High-capacity Storage Unit Advanced Visual Processing Unit Transport Network Coupler Hacking Suite > --- WEAPON (3) ------- Precision Beam Rifle Precision Beam Rifle > --- INVENTORY (12) --- Improved Ion Engine Wheel Large Storage Unit Experimental Sensor Array Light Armor Plating Hardened Medium Armor Plating Hardlight Generator System Shield Trap Reconfigurator EM Pulse Cannon Peak State ------------ > --- POWER ------------ Improved Ion Engine > --- PROPULSION ------- Wheel Armored Wheel > --- UTILITY ---------- High-capacity Storage Unit Advanced Visual Processing Unit Transport Network Coupler Hacking Suite Trap Reconfigurator > --- WEAPON ----------- Precision Beam Rifle Precision Beam Rifle Precision Beam Rifle > --- INVENTORY -------- Improved Ion Engine Wheel Improved Heat Sink Large Storage Unit Experimental Sensor Array Light Armor Plating Hardened Medium Armor Plating Hardlight Generator System Shield EM Pulse Cannon [Rating: 36] Favorites ----------- Power Light Ion Engine Engine Light Ion Engine Propulsion Wheel Treads Light Treads Wheel Wheel Utility Large Storage Unit Device Sensor Array Storage Large Storage Unit Processor Signal Interpreter Hackware Hacking Suite Protection Light Armor Plating Weapon EM Shotgun Energy Gun EM Shotgun Energy Cannon EM Pulse Cannon Ballistic Gun Light Assault Rifle Launcher Rocket Launcher Build | -11 -10 -10 -10 -9 -8 ------- Run | Scr Mat Min Exi Min Mat Slots Evolved 4 | . . . . . 4 Power . | . . . . . . Propulsion . | . . . . . . Utility 3 | . . . . . 3 Weapon 1 | . . . . . 1 Parts Attached 92 | 8 37 15 . 6 26 Power 7 | 1 4 1 . . 1 Engine 7 | 1 4 1 . . 1 Core . | . . . . . . Reactor . | . . . . . . Propulsion 14 | 4 3 4 . 1 2 Treads 1 | 1 . . . . . Leg . | . . . . . . Wheel 13 | 3 3 4 . 1 2 Hover . | . . . . . . Flight . | . . . . . . Utility 32 | 1 9 4 . . 18 Device 14 | . 3 . . . 11 Storage 10 | 1 4 2 . . 3 Processor 5 | . 1 1 . . 3 Hackware 1 | . . . . . 1 Protection 2 | . 1 1 . . . Artifact . | . . . . . . Weapon 39 | 2 21 6 . 5 5 Energy Gun 23 | 2 13 3 . 1 4 Energy Cannon 1 | . . . . . 1 Ballistic Gun 3 | . . 1 . 2 . Ballistic Cannon . | . . . . . . Launcher 12 | . 8 2 . 2 . Special Weapon . | . . . . . . Impact Weapon . | . . . . . . Slashing Weapon . | . . . . . . Piercing Weapon . | . . . . . . Special Melee Weapon . | . . . . . . Unidentified Prototypes 2 | . . . . . 2 Parts Lost 6 | . 1 1 . 2 2 Power 1 | . 1 . . . . Propulsion 1 | . . . . . 1 Utility . | . . . . . . Weapon 4 | . . 1 . 2 1 Highest Loss Streak 2 | . 1 1 . 1 2 Average Slot Usage (%) 96 | . 93 99 100 97 98 Engine 12 | . 11 14 14 14 9 Wheel 26 | . 28 28 28 28 17 Device 2 | . 3 . . . 7 Storage 13 | . 14 14 14 14 9 Processor 9 | . 4 3 14 14 18 Hackware 1 | . . . . . 9 Protection 2 | . 3 10 . . . Energy Gun 18 | . 22 20 14 2 24 Ballistic Gun 4 | . . 1 14 13 . Launcher 4 | . 4 6 . 9 . Naked Turns . | . . . . . . Heaviest Build 50 | 11 42 42 23 27 50 Greatest Support 26 | 26 26 26 20 20 22 Greatest Overweight (x) 3 | 1 2 1 1 1 3 Average Overweight (x) . | . . . 1 . 1 Largest Inventory Capacity 18 | 6 12 18 10 10 18 Average Capacity 9 | 5 8 10 10 10 10 Most Carried 12 | 2 10 12 10 10 12 Average Carried 8 | . 7 10 9 9 9 Final Capacity 12 | 6 10 10 10 10 12 Final Carried 10 | . 10 10 10 10 10 Class Distribution -------------------- 45% | Mutant 39% | Scavenger-Mutant 11% | Scavenger-Skirmisher 3% | Skirmisher Dominant Class ---------------- Mutant | -10/Materials Mutant | -10/Mines Scavenger-Mutant | -10/Exiles Scavenger-Mutant | -9/Mines Scavenger-Skirmisher | -8/Materials Resources | -11 -10 -10 -10 -9 -8 ----------- Run | Scr Mat Min Exi Min Mat Matter Collected 1566 | 272 555 247 . 60 432 Remotely . | . . . . . . Salvage Created 2625 | 104 927 676 . 48 870 Parts 137 | 6 67 29 . 1 34 Haulers Intercepted 4 | . 2 . . . 2 Recyclers Shooed 6 | . 2 1 . . 3 Parts Field Recycled . | . . . . . . Retrieved Matter . | . . . . . . Parts Self-Destructed . | . . . . . . Prevented . | . . . . . . Kills | -11 -10 -10 -10 -9 -8 ------- Run | Scr Mat Min Exi Min Mat Combat Hostiles Destroyed 50 | . 21 5 . 18 6 Guns 19 | . 12 2 . . 5 Cannons 1 | . . . . . 1 AOE 30 | . 9 3 . 18 . Classes Destroyed 12 | 2 7 . . 1 2 Worker 5 | . 2 1 . 1 1 Builder 5 | . 2 2 . . 1 Tunneler 1 | 1 . . . . . Hauler 4 | . 2 . . . 2 Recycler 12 | 1 2 5 . . 4 Mechanic 1 | . . . . . 1 Operator 2 | . 2 . . . . Watcher 4 | . 3 . . . 1 Swarmer 12 | . 9 3 . . . Grunt 19 | . 12 2 . . 5 Sentry 1 | . . . . . 1 Assembled 18 | . . . . 18 . Best Kill Streak 18 | 2 6 4 . 18 4 Combat Bots Only 18 | . 6 3 . 18 3 Max Kills in Single Turn 8 | 1 3 1 . 8 1 Gunslinging . | . . . . . . Exploded 8 | . 3 1 . 8 . Melee . | . . . . . . Uniques/NPCs Destroyed . | . . . . . . Combat | -11 -10 -10 -10 -9 -8 -------- Run | Scr Mat Min Exi Min Mat Damage Taken 1390 | . 496 197 . 281 416 Core 264 | . 73 34 . 71 86 Absorbed by Shields . | . . . . . . Core Remaining (%) 64 | 100 . . . 28 . Volleys Fired 168 | 7 75 29 . 13 44 Largest 3 | 2 2 2 . 2 3 Hottest 185 | 80 130 90 . 66 185 Shots Fired 340 | 14 132 46 . 21 127 Gun 295 | 14 114 39 . 8 120 Cannon 7 | . . . . . 7 Launcher 38 | . 18 7 . 13 . Special . | . . . . . . Kinetic 9 | . . 4 . 5 . Thermal 173 | 14 39 . . . 120 Explosive 38 | . 18 7 . 13 . Electromagnetic 120 | . 75 35 . 3 7 Robot Hit Streak 20 | 3 19 7 . 2 20 Robot Miss Streak 6 | 2 6 2 . 3 5 Penetration Max . | . . . . . . Secondary Targets . | . . . . . . Shots Hit Robots 231 | 9 93 36 . 5 88 Core Hits 155 | 3 67 23 . 38 24 Critical Hits . | . . . . . . Critical Kills . | . . . . . . Critical Parts Destroyed . | . . . . . . Melee Attacks . | . . . . . . Impact . | . . . . . . Slashing . | . . . . . . Piercing . | . . . . . . Sneak Attacks . | . . . . . . Combat Hostiles . | . . . . . . Follow-up Attacks . | . . . . . . Damage Inflicted 5468 | 98 1750 815 . 1246 1559 Guns 2857 | 98 926 380 . 29 1424 Cannons 135 | . . . . . 135 Explosions 2476 | . 824 435 . 1217 . Melee . | . . . . . . Ramming . | . . . . . . Kinetic 36 | . . 26 . 10 . Thermal 1804 | 98 221 61 . . 1424 Explosive 2385 | . 794 374 . 1217 . Electromagnetic 1243 | . 735 354 . 19 135 Impact . | . . . . . . Slashing . | . . . . . . Piercing . | . . . . . . Highest Corruption . | . . . . . . Average Corruption . | . . . . . . Corruption Purged . | . . . . . . Overload Shots . | . . . . . . Overflow Damage 109 | . 44 55 . 10 . Projectiles . | . . . . . . Explosions 109 | . 44 55 . 10 . Melee . | . . . . . . Knockbacks . | . . . . . . Impact . | . . . . . . Kinetic . | . . . . . . Secondary . | . . . . . . Self-Inflicted Damage 198 | . 130 68 . . . Shots 7 | . 4 3 . . . Rammed 1 | . . . . 1 . Targets Rammed 1 | . . . . 1 . Kicked . | . . . . . . Crushed . | . . . . . . Highest Temperature 551 | 72 422 100 . 28 551 Average Temperature 97 | 33 68 31 . 12 171 Received Heat Transfer 417 | . 114 45 . 60 198 Effects 11 | . 3 . . . 8 Shutdowns 1 | . . . . . 1 Energy Bleed 3 | . 1 . . . 2 Interference 4 | . 2 . . . 2 Matter Decay 2 | . . . . . 2 Damage (minor) 1 | . . . . . 1 Siege Activations . | . . . . . . Robots Corrupted . | . . . . . . Combat Hostiles . | . . . . . . Parts Fried 3 | . 1 2 . . . Impact Corruptions . | . . . . . . Robots Melted 1 | . . . . . 1 Combat Hostiles . | . . . . . . Parts Melted 4 | . . . . . 4 Heat Transferred 3748 | 225 365 50 . . 3108 Parts Sabotaged . | . . . . . . Parts Stolen . | . . . . . . Parts Stripped . | . . . . . . Power Chain Reactions 3 | . 1 2 . . . Missiles Intercepted . | . . . . . . Alert | -11 -10 -10 -10 -9 -8 ------- Run | Scr Mat Min Exi Min Mat Peak Influence 379 | 10 379 312 . 30 170 Initial 122 | . 6 122 . . 1 Average 168 | 3 279 175 . 2 63 Maximum Alert Level 1 | . 1 1 . . . Low Security (%) 58 | 100 13 81 . 100 100 Level 1 41 | . 86 18 . . . Level 2 . | . . . . . . Level 3 . | . . . . . . Level 4 . | . . . . . . Level 5 . | . . . . . . High Security . | . . . . . . Max Security . | . . . . . . Squads Dispatched 7 | . 6 . . . 1 Investigation 4 | . 4 . . . . Extermination . | . . . . . . Reinforcement 2 | . 2 . . . . Assault . | . . . . . . Garrison 1 | . . . . . 1 Intercept . | . . . . . . Construction Impeded . | . . . . . . Haulers Reinforced . | . . . . . . Stealth | -11 -10 -10 -10 -9 -8 --------- Run | Scr Mat Min Exi Min Mat Distress Signals 4 | . 1 . . . 3 Communications Jammed . | . . . . . . Distress Signals . | . . . . . . Times Spotted 81 | . 36 6 . 21 18 Peak Tracking Total 17 | . 5 2 . 17 5 Tactical Retreats 6 | . 1 1 . 1 3 Traps | -11 -10 -10 -10 -9 -8 ------- Run | Scr Mat Min Exi Min Mat Traps Triggered 2 | . 2 . . . . Indirectly . | . . . . . . Trap Hack Attempts . | . . . . . . Triggered . | . . . . . . Disarmed . | . . . . . . Reprogrammed . | . . . . . . Reused . | . . . . . . Traps Reconfigurated 4 | . . . . . 4 Traps Extracted . | . . . . . . Installed . | . . . . . . Triggered . | . . . . . . Machines | -11 -10 -10 -10 -9 -8 ---------- Run | Scr Mat Min Exi Min Mat Machines Disabled 7 | . 4 3 . . . Max in Single Turn 2 | . 2 2 . . . Machines Sabotaged . | . . . . . . Garrisons Compromised . | . . . . . . Overloaded Fab Kills . | . . . . . . Fab Network Shutdowns . | . . . . . . Hacking | -11 -10 -10 -10 -9 -8 --------- Run | Scr Mat Min Exi Min Mat Machines Accessed 16 | . 8 . 5 1 2 Terminals 9 | . 6 . . 1 2 Fabricators . | . . . . . . Repair Stations . | . . . . . . Recycling Units 2 | . 2 . . . . Scanalyzers . | . . . . . . Garrison Access . | . . . . . . Total Hacks 79 | . 22 . 50 3 4 Successful 61 | . 9 . 50 1 1 Failed 18 | . 13 . . 2 3 Catastrophic 2 | . 1 . . . 1 Database Lockouts . | . . . . . . Manual 28 | . 21 . 1 2 4 Terminals 22 | . 15 . . 3 4 Fabricators . | . . . . . . Repair Stations . | . . . . . . Recycling Units 7 | . 7 . . . . Scanalyzers . | . . . . . . Garrison Access . | . . . . . . Terminal Hacks 52 | . 1 . 50 1 . Record 49 | . . . 49 . . Terminal Index 1 | . 1 . . . . Unreport Threat 1 | . . . . 1 . EX-Prototype ID Bank 1 | . . . 1 . . Fabricator Hacks . | . . . . . . Repair Station Hacks . | . . . . . . Recycling Unit Hacks 1 | . 1 . . . . Report Inventory 1 | . 1 . . . . Scanalyzer . | . . . . . . Garrison Access Hacks . | . . . . . . Unauthorized Hacks 8 | . 7 . . . 1 Terminals 5 | . 4 . . . 1 Assimilate 1 | . . . . . 1 Botnet 3 | . 3 . . . . Operators 1 | . 1 . . . . Fabricators . | . . . . . . Repair Stations . | . . . . . . Recycling Units 3 | . 3 . . . . Reject 2 | . 2 . . . . Mask 1 | . 1 . . . . Scanalyzers . | . . . . . . Garrison Access . | . . . . . . Data Cores Recovered . | . . . . . . Used . | . . . . . . Hacking Detections 11 | . 8 . . 1 2 Full Trace Events 1 | . 1 . . . . Feedback Events . | . . . . . . Feedback Blocked . | . . . . . . Robot Schematics Acquired . | . . . . . . Robots Built . | . . . . . . Matter . | . . . . . . Time . | . . . . . . Total Robot Build Rating . | . . . . . . Part Schematics Acquired . | . . . . . . Parts Built . | . . . . . . Matter . | . . . . . . Time . | . . . . . . Total Part Build Rating . | . . . . . . Parts Repaired . | . . . . . . Time . | . . . . . . Parts Recycled . | . . . . . . Recycled Matter . | . . . . . . Retrieved Matter . | . . . . . . Retrieved Components . | . . . . . . Parts Scanalyzed . | . . . . . . Part Schematics Acquired . | . . . . . . Parts Damaged . | . . . . . . Bothacking | -11 -10 -10 -10 -9 -8 ------------ Run | Scr Mat Min Exi Min Mat Used RIF Installer . | . . . . . . Robots Hacked . | . . . . . . Non-combat . | . . . . . . Combat . | . . . . . . Robot Hacks Applied . | . . . . . . Relay Couplers Released . | . . . . . . Robots Rewired . | . . . . . . Allies Hacked . | . . . . . . Hacks Repelled . | . . . . . . Allies | -11 -10 -10 -10 -9 -8 -------- Run | Scr Mat Min Exi Min Mat Total Allies 1 | . . . . . 1 Largest Group 1 | . . . . . 1 Highest-Rated Group 10 | . . . . . 10 Highest-Rated Ally 10 | . . . . . 10 Total Orders 1 | . . . . . 1 STAY 1 | . . . . . 1 Ally Attacks . | . . . . . . Total Damage . | . . . . . . Kills . | . . . . . . Allies Corrupted . | . . . . . . Allies Melted . | . . . . . . Intel | -11 -10 -10 -10 -9 -8 ------- Run | Scr Mat Min Exi Min Mat Robot Analysis Total . | . . . . . . Derelict Logs Recovered 3 | . . 2 . 1 . Drone Launches . | . . . . . . Drone Recoveries . | . . . . . . Exploration | -11 -10 -10 -10 -9 -8 ------------- Run | Scr Mat Min Exi Min Mat Turns Passed 3925 | 83 1447 637 619 529 610 Spaces Moved 3317 | 56 1158 545 686 519 353 Core 6 | 6 . . . . . Treads . | . . . . . . Legs . | . . . . . . Wheels 3311 | 50 1158 545 686 519 353 Hover . | . . . . . . Flight . | . . . . . . Fastest Speed 50 | 50 80 90 90 80 90 Average Speed 90 | 87 85 98 90 87 97 Slowest Speed 120 | 100 100 100 90 90 120 Overloaded Moves . | . . . . . . Propulsion Burnouts . | . . . . . . Robots Hopped . | . . . . . . Cave-ins Triggered . | . . . . . . Exploration Rate (%) 63 | 3 96 86 92 81 23 Regions Visited 5 Branch Regions 3 Pre-discovered Areas 2 | . . . 1 1 . Known Exits Taken 4 | . 1 1 1 1 . Unknown Exits Taken 1 | 1 . . . . . Scrap Searched 2 | . . 1 . 1 . Spaces Dug 95 | . 59 . . 36 . Terrain Destroyed 316 | . 159 57 . 100 . Melee . | . . . . . . Projectile . | . . . . . . AOE 316 | . 159 57 . 100 . Terrain Rammed . | . . . . . . Walls Destroyed . | . . . . . . Machines Disabled . | . . . . . . Actions | -11 -10 -10 -10 -9 -8 --------- Run | Scr Mat Min Exi Min Mat Total 3927 | 73 1481 600 687 569 517 Wait 269 | . 167 . . 30 72 Move 3312 | 55 1157 544 685 518 353 Hop . | . . . . . . Pick Up 29 | . 15 2 1 1 10 Fast Attach 19 | 7 9 2 . . 1 Attach 14 | . 3 2 . 2 7 Detach 15 | 1 9 1 . . 4 Swap 59 | 1 25 11 . 4 18 Drop 40 | 2 21 8 1 . 8 Fire 168 | 7 75 29 . 13 44 Melee . | . . . . . . Ram 1 | . . . . 1 . Kick . | . . . . . . Crush . | . . . . . . Escape Stasis . | . . . . . . Rewire 1 | . . 1 . . . Trap . | . . . . . . Miscellaneous . | . . . . . . Route ------- -11/Scrapyard -10/Materials (discovered 5 exits: *Mat x3 / *Min x2) -10/Mines (discovered 2 exits: *Mat / *Exi) -10/Exiles (discovered 2 exits: *Min x2) -9/Mines -8/Materials History --------- Turn | Location | Event 27 | -11/Scrapyard | Discovered new exit (range 15) 84 | -11/Scrapyard | Entered Materials 313 | -10/Materials | Build established: Mutant 330 | -10/Materials | Discovered new exit (range 13) 449 | -10/Materials | Discovered new exit (range 9) 543 | -10/Materials | Discovered new exit (range 13) 672 | -10/Materials | Discovered new exit (range 15) 708 | -10/Materials | Build established: Scavenger-Mutant 742 | -10/Materials | Identified exit to Mines 1071 | -10/Materials | Build established: Mutant 1108 | -10/Materials | Discovered new exit (range 16) 1121 | -10/Materials | Identified exit to Materials 1531 | -10/Materials | Entered Mines 1559 | -10/Mines | Learned Materials garrison access intel 1755 | -10/Mines | Learned Materials garrison access intel 1895 | -10/Mines | Deemed a non-threat by the Exiles lab entrance 1895 | -10/Mines | Discovered new exit (range 5) 1956 | -10/Mines | Discovered exit to Materials (range 9) 1965 | -10/Mines | Found a damaged Exp. Sensor Array with a note attached 1968 | -10/Mines | Found Prototype Device 2167 | -10/Mines | Identified exit to Exiles 2168 | -10/Mines | Entered Exiles 2181 | -10/Exiles | Discovered new exit (range 15) 2197 | -10/Exiles | Identified exit to Mines 2215 | -10/Exiles | Met 8R-AWN 2230 | -10/Exiles | Met EX-HEX 2261 | -10/Exiles | Met EX-BIN 2342 | -10/Exiles | Aligned with FarCom system 2343 | -10/Exiles | Given EX-Vault access code 2365 | -10/Exiles | Opened EX-Vault 2379 | -10/Exiles | Found Trap Reconfigurator 2397 | -10/Exiles | Warned to stay clear of 0b10 Research branches 2399 | -10/Exiles | Build established: Scavenger-Mutant 2463 | -10/Exiles | Met EX-DEC 2482 | -10/Exiles | Learned location of Zion (-6) 2515 | -10/Exiles | Discovered exit to Mines (range 14) 2579 | -10/Exiles | Visited The Gauntlet 2787 | -10/Exiles | Left Exiles lab with Trap Reconfigurator 2787 | -10/Exiles | Entered Mines 2810 | -9/Mines | Assembled infested the area 2855 | -9/Mines | Destroyed 18 combat bots 3064 | -9/Mines | Discovered new exit (range 5) 3067 | -9/Mines | Identified exit to Materials 3126 | -9/Mines | Core integrity fell below 50% 3316 | -9/Mines | Entered Materials 3316 | -8/Materials | Evolved 4 slots: Utility x3, Weapon x1 3317 | -8/Materials | Loaded intel: 1 garrison access location 3321 | -8/Materials | Identified Exp. Sensor Array 3540 | -8/Materials | Garrison activated, responded to threat 3609 | -8/Materials | Build established: Scavenger-Skirmisher 3926 | -8/Materials | Self-destructed Last Messages --------------- Carbon-fiber Leg. 03738_ G-50 Soldier destroyed. 03742_ G-47 Trooper destroyed. 03745_ Acquired 40 matter. 03759_ A-02 Transporter destroyed. 03765_ K-01 Serf collects debris. 03769_ R-06 Scavenger destroyed. 03769_ K-01 Serf collects debris. 03775_ Dropped Sensor Array. 03778_ K-01 Serf collects debris. 03784_ Acquired 10 matter. 03785_ K-01 Serf collects debris. 03816_ K-01 Serf destroyed. 03851_ Acquired 10 matter. 03855_ K-01 Serf collects debris. 03869_ Slug penetrates Wall. 03884_ K-01 Serf collects debris. 03904_ Wheel destroyed. 03914_ Slug penetrates Wall. 03920_ Prc. Beam Rifle destroyed. Map ----- +----------------------------------------------------+ | ?????????????????????????????????????????????????? | | ?????????????????????????????????????????????????? | | ?????????????????????????????????????????????????# | | ????????????????????????????????????????????????? | | ????????????????????????????????????????????????? | | ?????????????????????????????#####???????????????# | | ?????????????????????????????# #???????????????# | | ?????????????????????????????# ###########?????# | | ?????????????????????????????# ?? | | ??????????#################### ?? | | ????????? #############???# | | ????????? # #???# | | ????????? ! # #???# | | ????????? #######+##### # +??? | | ???????????????????# * # # #???# | | ???????????????????# # # ##### | | ???????????????????# # ###+########## | | ???????????????????# # | | ???????????s???????# * + T | | ???????????s???????# = # | | ???????????s???????# [ # ###+########## | | ???????????????????# #! # #???## | | ???????????????????###########!! # """ #????#=! | | ?????????????????????????????#%!!# """ #????#= | | ???????????????Y??????########!! # """ #????#!= | | ??????????????????????# @ #!* # ###### | | ??????????????????????# """g# # """ + | | ??????????????????????# """ # # ] """ ###### | | ??????????????????????# """g# # """ #????# | | ??????????????#???????# g # # #????# | | ??????????????# ??????# /h # %=############### | | ??????######### ###########+## #????# ## = | | *%=! #????# """" "##*! | | ??????###########+####### ####[ #????# """" T##%! | | ????????????# #????# #??# #????# """ "##=! | | ????????????# ######+#### #????# =%[ ## | | ????????????# # *# #????####+##### | | ????????????# # """""""%# #????# *%!= | | ????????????# # """""""=# *#????# %[ | | ????????????# # """""""%/ =!#????# | | ????????????######## """"""" #=![#????# ######## | | ???????????????????# """"""" ###[#????# # | | ???????????????????# #?#g#????# # ! """ | | ???????????????????? #?#*#????# + """ | | ????????????????????##########?#!#????# # """ | | ???????????????????????????????#+###### #[ | | ???????????????????????????????# # # """ | | ???????????????????????????????# # #!! """ | | ???????????????????????????????# # #! """ | | ???????????????????????????????# # # | +----------------------------------------------------+ Best States ------------- Heat Dissipation 45 Energy Generation 12 Energy Capacity 265 Matter Stores 300 Matter Capacity 300 Sight Range 20 Robot Scan Range 10 Terrain Scan Density 10 Armor Coverage 150 Evasion (%) 44 Salvage Targeting 1 Offensive Hacking 10 Item Schematics ----------------- None Robot Schematics ------------------ None Fabricated ------------ Nothing Alien Tech Used ----------------- None Achievements -------------- Quick And Dirty Challenges ------------ None Game ------ Seed BlastMissileRefractor Manual? 0 Play Time 01:09:53 Cumulative 174.9 hours Start 2020.11.12 @ 20:37:50 End 2020.11.12 @ 22:45:57 Sessions 1 Manual Loads 0 Difficulty Rogue Special Mode Halloween2020/ForbiddenLore Game No. 67 Rogue 67 Adventurer 0 Explorer 0 Win Type - Total 0 Types 0/0/0/0/0/0/0/0/0 Lore% 21 Gallery% 25 Achievement% 23 Wizard Run 0 Options --------- ASCII 0 Keyboard 1 Movement Vi Keybinds 0 Fullscreen 1 Font 12/Terminus Map View 83x54 Tactical HUD 1 Map Filters NONE Filters NONE Steam 1 RUN: ba3866bd-c346-41e1-9fa2-b0a02c9925b1